Workbook

Sheet Istruzioni per l'uso
I4: VALUTAZIONE DEL GIOCO
C5: ISTRUZIONI PER L'USO
C7: NOTA: | D7: Il lavoro al computer e/o l'utilizzo della versione stampata dei documenti «Budget mensile della famiglia» e «Confronto
D8: dei budget» è raccomandato ma non obbligatorio.
C10: «Budget mensile della famiglia» | E10: Grazie a questo schema, potrete definire il budget mensile e quindi confrontarlo con le
E11: spese medie di una famiglia svizzera.
E12: 1. Inserite, nelle caselle verdi, la vostra proposta di ripartizione delle spese della
E13: famiglia che vi è stata assegnata.
E14: 2. Nella colonna in grigio trovate la famiglia svizzera per il confronto. Scegliete nell'elenco a discesa
E15: la famiglia tipo corrispondente.
E16: 3. Le percentuali indicate nella colonna «Corrispondenza» permette di vedere quanto la vostra proposta
E17: corrisponde alla media svizzera.
C19: «Confronto dei budget» | E19: Questa scheda permette di confrontare la ripartizione delle spese (per voce del bilancio) di due
E20: famiglie svizzere diverse. In pratica, anche i redditi, le spese (imposte, sanità, ecc.) e
E21: il saldo (risparmio/debito) possono essere confrontati. Per scegliere una famiglia tipo, cliccate sulla
E22: tipologia desiderata nell'elenco a discesa sotto «Budget 1» e «Budget 2».
C24: «Budget mensile famiglia_p» | E24: Questo foglio, come documento stampato, può servire da scheda di lavoro. Nella colonna in verde,
E25: potete inserire le vostre proposte di pianificazione del budget per la famiglia che vi è stata
E26: assegnata.
C28: «Confronto budget famiglia_p» | E28: Questo foglio, come documento stampato, può servire da scheda di lavoro. Fornisce una visione
E29: d'insieme dei redditi, della struttura delle spese e dei saldi dei 10 profili di famiglie.

Sheet Budget mensile della famiglia
D3: Proposta | G3: Media svizzera | K3: Corrispondenza
D4: Studente | G4: Ufficio federale di statistica | K4: =1-SUM(I10:I31) -> 1
A7: Redditi | C7: Reddito disponibile | E7: =IF($D$7,SUM(D7)/$D$7,0) -> 0 | G7: =INDEX(Dati!$D12:$N12,1,Dati!$A$56) -> 0 | H7: =IF($G$7,SUM(G7:G7)/$G$7,0) -> 0
B8: =Dati!$A13 -> 0
B9: =Dati!$A9 -> 0
A10: Spese | B10: =Dati!$A15 -> 1 | C10: Imposte | E10: =IF($D$7,SUM(D10)/$D$7,0) -> 0 | G10: =ABS(INDEX(Dati!$D15:$N15,1,Dati!$A$56)) -> 0 | H10: =IF($G$7,SUM(G10:G10)/$G$7,0) -> 0 | I10: =ABS(H10-E10) -> 0 | J10: Imposte federali, cantonali e comunali, tasse ufficiali
B11: =Dati!$A16 -> 0 | C11: =Dati!$B16 -> 0
B12: =Dati!$A17 -> 2 | C12: Sanità | E12: =IF($D$7,SUM(D12)/$D$7,0) -> 0 | G12: =ABS(INDEX(Dati!$D17:$N17,1,Dati!$A$56)) -> 0 | H12: =IF($G$7,SUM(G12:G12)/$G$7,0) -> 0 | I12: =ABS(H12-E12) -> 0 | J12: Premi dell'assicurazione, consultazioni mediche, farmaci
B13: =Dati!$A18 -> 0 | C13: =Dati!$B18 -> 0
B14: =Dati!$A19 -> 3 | C14: Sovvenzioni e regali | E14: =IF($D$7,SUM(D14)/$D$7,0) -> 0 | G14: =ABS(INDEX(Dati!$D19:$N19,1,Dati!$A$56)) -> 0 | H14: =IF($G$7,SUM(G14:G14)/$G$7,0) -> 0 | I14: =ABS(H14-E14) -> 0 | J14: Regali, donazioni, alimenti, contributi di assistenza
B15: =Dati!$A20 -> 0 | C15: =Dati!$B20 -> 0
B16: =Dati!$A21 -> 4 | C16: Abitazione | E16: =IF($D$7,SUM(D16)/$D$7,0) -> 0 | G16: =ABS(INDEX(Dati!$D21:$N21,1,Dati!$A$56)) -> 0 | H16: =IF($G$7,SUM(G16:G16)/$G$7,0) -> 0 | I16: =ABS(H16-E16) -> 0 | J16: Alloggio, energia
B17: =Dati!$A22 -> 0 | C17: =Dati!$B22 -> 0
B18: =Dati!$A23 -> 5 | C18: Alimentazione | E18: =IF($D$7,SUM(D18)/$D$7,0) -> 0 | G18: =ABS(INDEX(Dati!$D23:$N23,1,Dati!$A$56)) -> 0 | H18: =IF($G$7,SUM(G18:G18)/$G$7,0) -> 0 | I18: =ABS(H18-E18) -> 0 | J18: Beni alimentari, bevande
B19: =Dati!$A24 -> 0 | C19: =Dati!$B24 -> 0
B20: =Dati!$A25 -> 6 | C20: Abbigliamento e cura della persona | E20: =IF($D$7,SUM(D20)/$D$7,0) -> 0 | G20: =ABS(INDEX(Dati!$D25:$N25,1,Dati!$A$56)) -> 0 | H20: =IF($G$7,SUM(G20:G20)/$G$7,0) -> 0 | I20: =ABS(H20-E20) -> 0 | J20: Vestiti, scarpe prodotti igienici, parrucchiere
B21: =Dati!$A26 -> 0 | C21: =Dati!$B26 -> 0
B22: =Dati!$A27 -> 7 | C22: Cura della casa e assicurazione vita | E22: =IF($D$7,SUM(D22)/$D$7,0) -> 0 | G22: =ABS(INDEX(Dati!$D27:$N27,1,Dati!$A$56)) -> 0 | H22: =IF($G$7,SUM(G22:G22)/$G$7,0) -> 0 | I22: =ABS(H22-E22) -> 0 | J22: Mobili, elettrodomestici, assicurazioni
B23: =Dati!$A28 -> 0
B24: =Dati!$A29 -> 8 | C24: Mobilità | E24: =IF($D$7,SUM(D24)/$D$7,0) -> 0 | G24: =ABS(INDEX(Dati!$D29:$N29,1,Dati!$A$56)) -> 0 | H24: =IF($G$7,SUM(G24:G24)/$G$7,0) -> 0 | I24: =ABS(H24-E24) -> 0 | J24: Trasporti privati e trasporti pubblici
B25: =Dati!$A30 -> 0
B26: =Dati!$A31 -> 9 | C26: Communicazioni e apparecchi elettronici | E26: =IF($D$7,SUM(D26)/$D$7,0) -> 0 | G26: =ABS(INDEX(Dati!$D31:$N31,1,Dati!$A$56)) -> 0 | H26: =IF($G$7,SUM(G26:G26)/$G$7,0) -> 0 | I26: =ABS(H26-E26) -> 0 | J26: Telefonia, Internet, TV, computer
B27: =Dati!$A32 -> 0 | C27: =Dati!$B32 -> 0
B28: =Dati!$A33 -> 10 | C28: Tempo libero e formazione | E28: =IF($D$7,SUM(D28)/$D$7,0) -> 0 | G28: =ABS(INDEX(Dati!$D33:$N33,1,Dati!$A$56)) -> 0 | H28: =IF($G$7,SUM(G28:G28)/$G$7,0) -> 0 | I28: =ABS(H28-E28) -> 0 | J28: Uscite, vacanze, hobby, formazione
B29: =Dati!$A34 -> 0
B30: =Dati!$A35 -> 0
A31: Somma residua | C31: Risparmio/Debito | D31: =D7-SUM(D10:D28) -> 0 | E31: =IF($D$7,SUM(D31)/$D$7,0) -> 0 | G31: =INDEX(Dati!$D36:$N36,1,Dati!$A$56) -> 0 | H31: =IF($G$7,SUM(G31:G31)/$G$7,0) -> 0 | I31: =ABS(H31-E31) -> 0

Sheet Confronto dei budget
D3: Media svizzera
D4: Ufficio federale di statistica
B7: Budget 1 | K7: Entrate | M7: =INDEX(Dati!$D12:$N12,1,Dati!$A$58) -> 2780 | P7: Somma residua | S7: =INDEX(Dati!$D36:$N36,1,Dati!$A$58) -> -730
B9: Budget 2 | M9: =INDEX(Dati!$D12:$N12,1,Dati!$A$59) -> 5820 | S9: =INDEX(Dati!$D36:$N36,1,Dati!$A$59) -> 750
B11: =Dati!$A9 -> 0
A12: Spese
C15: 1 Imposte | G15: 2 Sanità | K15: 3 Sovvenzioni e regali | O15: 4 Abitazione | S15: 5 Alimentazione
C16: ((Icon)) | G16: ((Icon)) | K16: ((Icon)) | O16: ((Icon)) | S16: ((Icon))
C17: =INDEX(Dati!$D15:$N15,1,Dati!$A$58) -> -290 | G17: =INDEX(Dati!$D17:$N17,1,Dati!$A$58) -> -520 | K17: =INDEX(Dati!$D19:$N19,1,Dati!$A$58) -> -130 | O17: =INDEX(Dati!$D21:$N21,1,Dati!$A$58) -> -1040 | S17: =INDEX(Dati!$D23:$N23,1,Dati!$A$58) -> -320
C19: =INDEX(Dati!$D15:$N15,1,Dati!$A$59) -> -640 | G19: =INDEX(Dati!$D17:$N17,1,Dati!$A$59) -> -490 | K19: =INDEX(Dati!$D19:$N19,1,Dati!$A$59) -> -290 | O19: =INDEX(Dati!$D21:$N21,1,Dati!$A$59) -> -1240 | S19: =INDEX(Dati!$D23:$N23,1,Dati!$A$59) -> -340
C23: 6 Abbigliamento | G23: 7 Cura della casa | K23: 8 Mobilità | O23: 9 Communicazioni | S23: 10 Tempo libero e
C24: e cura della persona | G24: e assicurazione vita | O24: e apparecchi elettronici | S24: formazione
C25: ((Icon)) | G25: ((Icon)) | K25: ((Icon)) | O25: ((Icon)) | S25: ((Icon))
C26: =INDEX(Dati!$D25:$N25,1,Dati!$A$58) -> -130 | G26: =INDEX(Dati!$D27:$N27,1,Dati!$A$58) -> -190 | K26: =INDEX(Dati!$D29:$N29,1,Dati!$A$58) -> -300 | O26: =INDEX(Dati!$D31:$N31,1,Dati!$A$58) -> -150 | S26: =INDEX(Dati!$D33:$N33,1,Dati!$A$58) -> -440
C28: =INDEX(Dati!$D25:$N25,1,Dati!$A$59) -> -200 | G28: =INDEX(Dati!$D27:$N27,1,Dati!$A$59) -> -350 | K28: =INDEX(Dati!$D29:$N29,1,Dati!$A$59) -> -570 | O28: =INDEX(Dati!$D31:$N31,1,Dati!$A$59) -> -190 | S28: =INDEX(Dati!$D33:$N33,1,Dati!$A$59) -> -760

Sheet Dati (hidden)
A1: 9 | E1: 1 | F1: 2 | G1: 3 | H1: 4 | I1: 5 | J1: 6 | K1: 7 | L1: 8 | M1: 9 | N1: 10
B2: Groupe de population | E2: 1 Persona sola, reddito basso | F2: 2 Persona sola, reddito medio | G2: 3 Persona sola, reddito elevato | H2: 4 Coppia senza figli, reddito basso | I2: 5 Coppia senza figli, reddito medio | J2: 6 Persona sola con figli | K2: 7 Coppia di pensionati senza figli, reddito medio da pensione | L2: 8 Coppia con due figli, reddito basso | M2: 9 Coppia con due figli, reddito medio | N2: 10 Coppia con due figli, reddito elevato
A4: A | B4: Revenus primaires | E4: 1080 | F4: 5960 | G4: 12070 | H4: 4550 | I4: 11010 | J4: 6020 | K4: 950 | L4: 5670 | M4: 11070 | N4: 23840
A6: B | B6: Rentes et prestations sociales | E6: 1450 | F6: 420 | G6: 380 | H6: 1170 | I6: 530 | J6: 1220 | K6: 6220 | L6: 970 | M6: 880 | N6: 720
A8: C | B8: Revenus sporadiques, de transfert | E8: 380 | F8: 200 | G8: 470 | H8: 310 | I8: 370 | J8: 1320 | K8: 400 | L8: 280 | M8: 510 | N8: 740
A10: D | B10: Cotisations aux assurances sociales | E10: -130 | F10: -760 | G10: -1600 | H10: -550 | I10: -1360 | J10: -760 | K10: -40 | L10: -680 | M10: -1410 | N10: -2930
A12: E | B12: Revenus disponibles | E12: =SUM(E4:E10) -> 2780 | F12: =SUM(F4:F10) -> 5820 | G12: 11320 | H12: 5480 | I12: 10550 | J12: =SUM(J4:J10) -> 7800 | K12: 7530 | L12: 6240 | M12: 11050 | N12: 22370
A15: 1 | B15: Impôts | E15: -290 | F15: -640 | G15: -1770 | H15: -820 | I15: -1300 | J15: -590 | K15: -1070 | L15: -470 | M15: -1000 | N15: -3460
A17: 2 | B17: Santé | E17: -520 | F17: -490 | G17: -640 | H17: -920 | I17: -940 | J17: -950 | K17: -1490 | L17: -1090 | M17: -1260 | N17: -1540
A19: 3 | B19: Assistance et cadeaux | E19: -130 | F19: -290 | G19: -1120 | H19: -190 | I19: -250 | J19: -290 | K19: -400 | L19: -110 | M19: -240 | N19: -590
A21: 4 | B21: Logement | E21: -1040 | F21: -1240 | G21: -1680 | H21: -1370 | I21: -1620 | J21: -1590 | K21: -1180 | L21: -1410 | M21: -1530 | N21: -2350
A23: 5 | B23: Alimentation | E23: -320 | F23: -340 | G23: -390 | H23: -540 | I23: -620 | J23: -640 | K23: -750 | L23: -720 | M23: -910 | N23: -1110
A25: 6 | B25: Habillement et soins corporels | E25: -130 | F25: -200 | G25: -310 | H25: -260 | I25: -380 | J25: -380 | K25: -300 | L25: -320 | M25: -500 | N25: -860
A27: 7 | B27: Ménage et assurance vie | E27: -190 | F27: -350 | G27: -790 | H27: -450 | I27: -810 | J27: -440 | K27: -350 | L27: -440 | M27: -890 | N27: -1610
A29: 8 | B29: Mobilité | E29: -300 | F29: -570 | G29: -870 | H29: -740 | I29: -1160 | J29: -670 | K29: -760 | L29: -770 | M29: -1210 | N29: -1800
A31: 9 | B31: Communication et appareils électroniques | E31: -150 | F31: -190 | G31: -240 | H31: -230 | I31: -280 | J31: -290 | K31: -200 | L31: -260 | M31: -310 | N31: -400
A33: 10 | B33: Loisirs et formation | E33: -440 | F33: -760 | G33: -1290 | H33: -880 | I33: -1360 | J33: -1080 | K33: -1220 | L33: -830 | M33: -1570 | N33: -3380
A36: F | B36: Epargne/Dette | E36: =SUM(E12:E33) -> -730 | F36: =SUM(F12:F33) -> 750 | G36: 2220 | H36: -920 | I36: 1830 | J36: 880 | K36: -190 | L36: =SUM(L12:L33) -> -180 | M36: 1630 | N36: 5270
A38: X1 | B38: Personne seule / couple | E38: Personne seule | F38: Personne seule | G38: Personne seule | H38: Couple | I38: Couple | J38: Personne seule | K38: Couple | L38: Couple | M38: Couple | N38: Couple
A39: X2 | B39: Enfants | E39: Non | F39: Non | G39: Non | H39: Non | I39: Non | J39: Oui | K39: Non | L39: Oui | M39: Oui | N39: Oui
A40: X3 | B40: Âge | E40: Moins de 65 ans | F40: Moins de 65 ans | G40: Moins de 65 ans | H40: - | I40: 65 ans et + | J40: - | K40: 65 ans et + | L40: - | M40: - | N40: -
A41: X4 | B41: Revenus | E41: Revenus faibles | F41: Revenus moyens | G41: Revenus supérieurs | H41: Revenus faibles | I41: Revenus moyens | J41: Revenus moyens (60 pour cent) | K41: Revenus moyens | L41: Revenus faibles | M41: Revenus moyens | N41: Revenus supérieurs
B44: =E2 -> 1 Persona sola, reddito basso
B45: =F2 -> 2 Persona sola, reddito medio
B46: =G2 -> 3 Persona sola, reddito elevato
B47: =H2 -> 4 Coppia senza figli, reddito basso
B48: =I2 -> 5 Coppia senza figli, reddito medio
B49: =J2 -> 6 Persona sola con figli
B50: =K2 -> 7 Coppia di pensionati senza figli, reddito medio da pensione
B51: =L2 -> 8 Coppia con due figli, reddito basso
B52: =M2 -> 9 Coppia con due figli, reddito medio
B53: =N2 -> 10 Coppia con due figli, reddito elevato
A56: 1 | B56: Cell Lien vers Budget mensuel des ménages
A58: 2 | B58: Cell Lien vers Types de ménages Comparaison 1
A59: 3 | B59: Cell Lien vers Types de ménages Comparaison 1

Sheet Budget mensile famiglia_p
D3: Proposta
D4: Studente
A7: Redditi | C7: Reddito disponibile
B8: =Dati!$A13 -> 0
B9: =Dati!$A9 -> 0
A10: Spese | B10: =Dati!$A15 -> 1 | C10: Imposte | E10: =IF($D$7,SUM(D10)/$D$7,0) -> 0 | F10: =ABS(#REF!-E10) ->  | G10: Imposte federali, cantonali e comunali, tasse ufficiali
B11: =Dati!$A16 -> 0 | C11: =Dati!$B16 -> 0
B12: =Dati!$A17 -> 2 | C12: Sanità | E12: =IF($D$7,SUM(D12)/$D$7,0) -> 0 | F12: =ABS(#REF!-E12) ->  | G12: Premi dell'assicurazione, consultazioni mediche, farmaci
B13: =Dati!$A18 -> 0 | C13: =Dati!$B18 -> 0
B14: =Dati!$A19 -> 3 | C14: Sovvenzioni e regali | E14: =IF($D$7,SUM(D14)/$D$7,0) -> 0 | F14: =ABS(#REF!-E14) ->  | G14: Regali, donazioni, alimenti, contributi di assistenza
B15: =Dati!$A20 -> 0 | C15: =Dati!$B20 -> 0
B16: =Dati!$A21 -> 4 | C16: Abitazione | E16: =IF($D$7,SUM(D16)/$D$7,0) -> 0 | F16: =ABS(#REF!-E16) ->  | G16: Alloggio, energia
B17: =Dati!$A22 -> 0 | C17: =Dati!$B22 -> 0
B18: =Dati!$A23 -> 5 | C18: Alimentazione | E18: =IF($D$7,SUM(D18)/$D$7,0) -> 0 | F18: =ABS(#REF!-E18) ->  | G18: Beni alimentari, bevande
B19: =Dati!$A24 -> 0 | C19: =Dati!$B24 -> 0
B20: =Dati!$A25 -> 6 | C20: Abbigliamento e cura della persona | E20: =IF($D$7,SUM(D20)/$D$7,0) -> 0 | F20: =ABS(#REF!-E20) ->  | G20: Vestiti, scarpe prodotti igienici, parrucchiere
B21: =Dati!$A26 -> 0 | C21: =Dati!$B26 -> 0
B22: =Dati!$A27 -> 7 | C22: Cura della casa e assicurazione vita | E22: =IF($D$7,SUM(D22)/$D$7,0) -> 0 | F22: =ABS(#REF!-E22) ->  | G22: Mobili, elettrodomestici, assicurazioni
B23: =Dati!$A28 -> 0
B24: =Dati!$A29 -> 8 | C24: Mobilità | E24: =IF($D$7,SUM(D24)/$D$7,0) -> 0 | F24: =ABS(#REF!-E24) ->  | G24: Trasporti privati e trasporti pubblici
B25: =Dati!$A30 -> 0
B26: =Dati!$A31 -> 9 | C26: Communicazioni e apparecchi elettronici | E26: =IF($D$7,SUM(D26)/$D$7,0) -> 0 | F26: =ABS(#REF!-E26) ->  | G26: Telefonia, Internet, TV, computer
B27: =Dati!$A32 -> 0 | C27: =Dati!$B32 -> 0
B28: =Dati!$A33 -> 10 | C28: Tempo libero e formazione | E28: =IF($D$7,SUM(D28)/$D$7,0) -> 0 | F28: =ABS(#REF!-E28) ->  | G28: Uscite, vacanze, hobby, formazione
B29: =Dati!$A34 -> 0
B30: =Dati!$A35 -> 0
A31: Somma residua | C31: Risparmio/Debito | D31: =D7-SUM(D10:D28) -> 0 | E31: =IF($D$7,SUM(D31)/$D$7,0) -> 0 | F31: =ABS(#REF!-E31) -> 

Sheet Confronto budget famiglie_p
D1: 1 | E1: 2 | F1: 3 | G1: 4 | H1: 5 | I1: 6 | J1: 7 | K1: 8 | L1: 9 | M1: 10
D2: Persona sola, reddito basso | E2: Persona sola, reddito medio | F2: Persona sola, reddito elevato | G2: Coppia senza figli, reddito basso | H2: Coppia senza figli, reddito medio | I2: Persona sola con figli | J2: Coppia di pensionati senza figli, reddito medio da pensione | K2: Coppia con due figli, reddito basso | L2: Coppia con due figli, reddito medio | M2: Coppia con due figli, reddito elevato
B4: Reddito primario | D4: =Dati!E4 -> 1080 | E4: =Dati!F4 -> 5960 | F4: =Dati!G4 -> 12070 | G4: =Dati!H4 -> 4550 | H4: =Dati!I4 -> 11010 | I4: =Dati!J4 -> 6020 | J4: =Dati!K4 -> 950 | K4: =Dati!L4 -> 5670 | L4: =Dati!M4 -> 11070 | M4: =Dati!N4 -> 23840
D5: =Dati!E5 -> 0
B6: Rendite e prestazioni sociali | D6: =Dati!E6 -> 1450 | E6: =Dati!F6 -> 420 | F6: =Dati!G6 -> 380 | G6: =Dati!H6 -> 1170 | H6: =Dati!I6 -> 530 | I6: =Dati!J6 -> 1220 | J6: =Dati!K6 -> 6220 | K6: =Dati!L6 -> 970 | L6: =Dati!M6 -> 880 | M6: =Dati!N6 -> 720
D7: =Dati!E7 -> 0
B8: Redditi sporadici e trasferimenti | D8: =Dati!E8 -> 380 | E8: =Dati!F8 -> 200 | F8: =Dati!G8 -> 470 | G8: =Dati!H8 -> 310 | H8: =Dati!I8 -> 370 | I8: =Dati!J8 -> 1320 | J8: =Dati!K8 -> 400 | K8: =Dati!L8 -> 280 | L8: =Dati!M8 -> 510 | M8: =Dati!N8 -> 740
D9: =Dati!E9 -> 0
B10: Contributi alle assicurazioni sociali | D10: =Dati!E10 -> -130 | E10: =Dati!F10 -> -760 | F10: =Dati!G10 -> -1600 | G10: =Dati!H10 -> -550 | H10: =Dati!I10 -> -1360 | I10: =Dati!J10 -> -760 | J10: =Dati!K10 -> -40 | K10: =Dati!L10 -> -680 | L10: =Dati!M10 -> -1410 | M10: =Dati!N10 -> -2930
B12: Reddito disponibile | D12: =Dati!E12 -> 2780 | E12: =Dati!F12 -> 5820 | F12: =Dati!G12 -> 11320 | G12: =Dati!H12 -> 5480 | H12: =Dati!I12 -> 10550 | I12: =Dati!J12 -> 7800 | J12: =Dati!K12 -> 7530 | K12: =Dati!L12 -> 6240 | L12: =Dati!M12 -> 11050 | M12: =Dati!N12 -> 22370
A15: 1 | B15: Imposte | D15: =Dati!E15 -> -290 | E15: =Dati!F15 -> -640 | F15: =Dati!G15 -> -1770 | G15: =Dati!H15 -> -820 | H15: =Dati!I15 -> -1300 | I15: =Dati!J15 -> -590 | J15: =Dati!K15 -> -1070 | K15: =Dati!L15 -> -470 | L15: =Dati!M15 -> -1000 | M15: =Dati!N15 -> -3460
D16: =Dati!E16 -> 0 | E16: =Dati!F16 -> 0 | F16: =Dati!G16 -> 0 | G16: =Dati!H16 -> 0 | H16: =Dati!I16 -> 0 | I16: =Dati!J16 -> 0 | J16: =Dati!K16 -> 0 | K16: =Dati!L16 -> 0 | L16: =Dati!M16 -> 0 | M16: =Dati!N16 -> 0
A17: 2 | B17: Sanità | D17: =Dati!E17 -> -520 | E17: =Dati!F17 -> -490 | F17: =Dati!G17 -> -640 | G17: =Dati!H17 -> -920 | H17: =Dati!I17 -> -940 | I17: =Dati!J17 -> -950 | J17: =Dati!K17 -> -1490 | K17: =Dati!L17 -> -1090 | L17: =Dati!M17 -> -1260 | M17: =Dati!N17 -> -1540
D18: =Dati!E18 -> 0 | E18: =Dati!F18 -> 0 | F18: =Dati!G18 -> 0 | G18: =Dati!H18 -> 0 | H18: =Dati!I18 -> 0 | I18: =Dati!J18 -> 0 | J18: =Dati!K18 -> 0 | K18: =Dati!L18 -> 0 | L18: =Dati!M18 -> 0 | M18: =Dati!N18 -> 0
A19: 3 | B19: Sovvenzioni e regali | D19: =Dati!E19 -> -130 | E19: =Dati!F19 -> -290 | F19: =Dati!G19 -> -1120 | G19: =Dati!H19 -> -190 | H19: =Dati!I19 -> -250 | I19: =Dati!J19 -> -290 | J19: =Dati!K19 -> -400 | K19: =Dati!L19 -> -110 | L19: =Dati!M19 -> -240 | M19: =Dati!N19 -> -590
D20: =Dati!E20 -> 0 | E20: =Dati!F20 -> 0 | F20: =Dati!G20 -> 0 | G20: =Dati!H20 -> 0 | H20: =Dati!I20 -> 0 | I20: =Dati!J20 -> 0 | J20: =Dati!K20 -> 0 | K20: =Dati!L20 -> 0 | L20: =Dati!M20 -> 0 | M20: =Dati!N20 -> 0
A21: 4 | B21: Abitazione | D21: =Dati!E21 -> -1040 | E21: =Dati!F21 -> -1240 | F21: =Dati!G21 -> -1680 | G21: =Dati!H21 -> -1370 | H21: =Dati!I21 -> -1620 | I21: =Dati!J21 -> -1590 | J21: =Dati!K21 -> -1180 | K21: =Dati!L21 -> -1410 | L21: =Dati!M21 -> -1530 | M21: =Dati!N21 -> -2350
D22: =Dati!E22 -> 0 | E22: =Dati!F22 -> 0 | F22: =Dati!G22 -> 0 | G22: =Dati!H22 -> 0 | H22: =Dati!I22 -> 0 | I22: =Dati!J22 -> 0 | J22: =Dati!K22 -> 0 | K22: =Dati!L22 -> 0 | L22: =Dati!M22 -> 0 | M22: =Dati!N22 -> 0
A23: 5 | B23: Alimentazione | D23: =Dati!E23 -> -320 | E23: =Dati!F23 -> -340 | F23: =Dati!G23 -> -390 | G23: =Dati!H23 -> -540 | H23: =Dati!I23 -> -620 | I23: =Dati!J23 -> -640 | J23: =Dati!K23 -> -750 | K23: =Dati!L23 -> -720 | L23: =Dati!M23 -> -910 | M23: =Dati!N23 -> -1110
D24: =Dati!E24 -> 0 | E24: =Dati!F24 -> 0 | F24: =Dati!G24 -> 0 | G24: =Dati!H24 -> 0 | H24: =Dati!I24 -> 0 | I24: =Dati!J24 -> 0 | J24: =Dati!K24 -> 0 | K24: =Dati!L24 -> 0 | L24: =Dati!M24 -> 0 | M24: =Dati!N24 -> 0
A25: 6 | B25: Abbigliamento e cura della persona | D25: =Dati!E25 -> -130 | E25: =Dati!F25 -> -200 | F25: =Dati!G25 -> -310 | G25: =Dati!H25 -> -260 | H25: =Dati!I25 -> -380 | I25: =Dati!J25 -> -380 | J25: =Dati!K25 -> -300 | K25: =Dati!L25 -> -320 | L25: =Dati!M25 -> -500 | M25: =Dati!N25 -> -860
D26: =Dati!E26 -> 0 | E26: =Dati!F26 -> 0 | F26: =Dati!G26 -> 0 | G26: =Dati!H26 -> 0 | H26: =Dati!I26 -> 0 | I26: =Dati!J26 -> 0 | J26: =Dati!K26 -> 0 | K26: =Dati!L26 -> 0 | L26: =Dati!M26 -> 0 | M26: =Dati!N26 -> 0
A27: 7 | B27: Cura della casa e assicurazione vita | D27: =Dati!E27 -> -190 | E27: =Dati!F27 -> -350 | F27: =Dati!G27 -> -790 | G27: =Dati!H27 -> -450 | H27: =Dati!I27 -> -810 | I27: =Dati!J27 -> -440 | J27: =Dati!K27 -> -350 | K27: =Dati!L27 -> -440 | L27: =Dati!M27 -> -890 | M27: =Dati!N27 -> -1610
D28: =Dati!E28 -> 0 | E28: =Dati!F28 -> 0 | F28: =Dati!G28 -> 0 | G28: =Dati!H28 -> 0 | H28: =Dati!I28 -> 0 | I28: =Dati!J28 -> 0 | J28: =Dati!K28 -> 0 | K28: =Dati!L28 -> 0 | L28: =Dati!M28 -> 0 | M28: =Dati!N28 -> 0
A29: 8 | B29: Mobilità | D29: =Dati!E29 -> -300 | E29: =Dati!F29 -> -570 | F29: =Dati!G29 -> -870 | G29: =Dati!H29 -> -740 | H29: =Dati!I29 -> -1160 | I29: =Dati!J29 -> -670 | J29: =Dati!K29 -> -760 | K29: =Dati!L29 -> -770 | L29: =Dati!M29 -> -1210 | M29: =Dati!N29 -> -1800
D30: =Dati!E30 -> 0 | E30: =Dati!F30 -> 0 | F30: =Dati!G30 -> 0 | G30: =Dati!H30 -> 0 | H30: =Dati!I30 -> 0 | I30: =Dati!J30 -> 0 | J30: =Dati!K30 -> 0 | K30: =Dati!L30 -> 0 | L30: =Dati!M30 -> 0 | M30: =Dati!N30 -> 0
A31: 9 | B31: Comunicazione e apparecchi elettronici | D31: =Dati!E31 -> -150 | E31: =Dati!F31 -> -190 | F31: =Dati!G31 -> -240 | G31: =Dati!H31 -> -230 | H31: =Dati!I31 -> -280 | I31: =Dati!J31 -> -290 | J31: =Dati!K31 -> -200 | K31: =Dati!L31 -> -260 | L31: =Dati!M31 -> -310 | M31: =Dati!N31 -> -400
D32: =Dati!E32 -> 0 | E32: =Dati!F32 -> 0 | F32: =Dati!G32 -> 0 | G32: =Dati!H32 -> 0 | H32: =Dati!I32 -> 0 | I32: =Dati!J32 -> 0 | J32: =Dati!K32 -> 0 | K32: =Dati!L32 -> 0 | L32: =Dati!M32 -> 0 | M32: =Dati!N32 -> 0
A33: 10 | B33: Tempo libero e formazione | D33: =Dati!E33 -> -440 | E33: =Dati!F33 -> -760 | F33: =Dati!G33 -> -1290 | G33: =Dati!H33 -> -880 | H33: =Dati!I33 -> -1360 | I33: =Dati!J33 -> -1080 | J33: =Dati!K33 -> -1220 | K33: =Dati!L33 -> -830 | L33: =Dati!M33 -> -1570 | M33: =Dati!N33 -> -3380
B36: Somma residua | D36: =Dati!E36 -> -730 | E36: =Dati!F36 -> 750 | F36: =Dati!G36 -> 2220 | G36: =Dati!H36 -> -920 | H36: =Dati!I36 -> 1830 | I36: =Dati!J36 -> 880 | J36: =Dati!K36 -> -190 | K36: =Dati!L36 -> -180 | L36: =Dati!M36 -> 1630 | M36: =Dati!N36 -> 5270
